[Event "Late-Titled-Tuesday-Blitz-October-03-2023"]
[Site "Chess.com"]
[Date "2023.10.03"]
[Round "2"]
[White "Yushko_Olga"]
[Black "kaanadayhamle"]
[Result "0-1"]
[WhiteElo "2107"]
[BlackElo "2416"]
[TimeControl "180+1"]
[EndTime "14:17:58 PDT"]
[Termination "kaanadayhamle won by resignation"]

1. d4 {[%clk 0:02:59.6]} 1... Nf6 {[%clk 0:02:59.3]} 2. c4 {[%clk 0:02:59.1]}
2... e6 {[%clk 0:03:00.2]} 3. Nc3 {[%clk 0:02:58.3]} 3... Bb4 {[%clk 0:03:00.3]}
4. Qc2 {[%clk 0:02:58.9]} 4... d5 {[%clk 0:03:00.3]} 5. cxd5 {[%clk 0:02:59.2]}
5... exd5 {[%clk 0:03:01.2]} 6. Nf3 {[%clk 0:02:58.5]} 6... O-O {[%clk
0:03:01.2]} 7. Bg5 {[%clk 0:02:58]} 7... c6 {[%clk 0:03:01.4]} 8. e3 {[%clk
0:02:58.1]} 8... h6 {[%clk 0:03:01.2]} 9. Bh4 {[%clk 0:02:58.4]} 9... Nbd7
{[%clk 0:03:01.9]} 10. Bd3 {[%clk 0:02:56.7]} 10... Re8 {[%clk 0:03:02.2]} 11.
O-O {[%clk 0:02:56.6]} 11... a5 {[%clk 0:02:59.5]} 12. a3 {[%clk 0:02:47.9]}
12... Bd6 {[%clk 0:02:57.8]} 13. Na4 {[%clk 0:02:45.4]} 13... Qc7 {[%clk
0:02:53.9]} 14. Nc3 {[%clk 0:02:39.7]} 14... b6 {[%clk 0:02:28.9]} 15. Rac1
{[%clk 0:02:31]} 15... Qb8 {[%clk 0:02:27.9]} 16. Na4 {[%clk 0:02:25.5]} 16...
b5 {[%clk 0:02:20.4]} 17. Nc5 {[%clk 0:02:18.7]} 17... Bxc5 {[%clk 0:02:18.7]}
18. dxc5 {[%clk 0:02:19.6]} 18... Ne4 {[%clk 0:02:17.5]} 19. Bxe4 {[%clk
0:02:16.1]} 19... dxe4 {[%clk 0:02:17.7]} 20. Nd4 {[%clk 0:02:15.7]} 20... Bb7
{[%clk 0:02:14.7]} 21. Rfd1 {[%clk 0:02:06.1]} 21... Nf8 {[%clk 0:01:29.2]} 22.
Nf5 {[%clk 0:02:01.7]} 22... Ba6 {[%clk 0:01:16.1]} 23. Nd6 {[%clk 0:02:00.8]}
23... Re6 {[%clk 0:01:15.7]} 24. Nxe4 {[%clk 0:01:52.7]} 24... b4 {[%clk
0:01:16]} 25. Bg3 {[%clk 0:01:44.4]} 25... b3 {[%clk 0:00:55.9]} 26. Qc3 {[%clk
0:01:43.6]} 26... Qa7 {[%clk 0:00:51.1]} 27. Nd6 {[%clk 0:01:39.5]} 27... a4
{[%clk 0:00:51.2]} 28. Be5 {[%clk 0:01:22.8]} 28... Rg6 {[%clk 0:00:48.5]} 29.
Nf5 {[%clk 0:01:04.4]} 29... Ne6 {[%clk 0:00:47.1]} 30. Rd6 {[%clk 0:00:57.4]}
30... Qb7 {[%clk 0:00:26.6]} 31. Rcd1 {[%clk 0:00:48.4]} 31... Be2 {[%clk
0:00:21]} 32. Rd7 {[%clk 0:00:45.6]} 32... Qb5 {[%clk 0:00:20.6]} 33. Ne7+
{[%clk 0:00:44.1]} 33... Kh7 {[%clk 0:00:20.8]} 34. Nxg6 {[%clk 0:00:43.2]}
34... Bxd1 {[%clk 0:00:21]} 35. Ne7 {[%clk 0:00:28.1]} 35... Bh5 {[%clk
0:00:16]} 36. Nf5 {[%clk 0:00:21.4]} 36... Qxc5 {[%clk 0:00:11.2]} 37. Qxc5
{[%clk 0:00:20.3]} 37... Nxc5 {[%clk 0:00:12.1]} 38. Rc7 {[%clk 0:00:19]} 38...
Ne6 {[%clk 0:00:11.1]} 39. Rxc6 {[%clk 0:00:18.7]} 39... Rd8 {[%clk 0:00:11.7]}
40. h3 {[%clk 0:00:17.3]} 40... Rd1+ {[%clk 0:00:11.4]} 41. Kh2 {[%clk
0:00:17.6]} 41... Rd2 {[%clk 0:00:08.4]} 42. Bc3 {[%clk 0:00:16.3]} 42... Rxf2
{[%clk 0:00:08.1]} 43. Ng3 {[%clk 0:00:15.4]} 43... Bf3 {[%clk 0:00:08.3]} 44.
Ra6 {[%clk 0:00:10.9]} 44... Rxg2+ {[%clk 0:00:07.9]} 45. Kh1 {[%clk 0:00:11.3]}
45... Rxb2+ {[%clk 0:00:07.4]} 46. Kg1 {[%clk 0:00:11.1]} 46... Rg2+ {[%clk
0:00:08.1]} 47. Kf1 {[%clk 0:00:11.4]} 47... Rxg3 {[%clk 0:00:08.7]} 48. Rxa4
{[%clk 0:00:11.1]} 48... Bd5 {[%clk 0:00:08.1]} 49. Bd2 {[%clk 0:00:09.3]} 49...
Rf3+ {[%clk 0:00:08]} 50. Ke2 {[%clk 0:00:09.2]} 50... Rxh3 {[%clk 0:00:08.4]}
51. Rb4 {[%clk 0:00:09.7]} 51... Rh2+ {[%clk 0:00:08.4]} 52. Kd3 {[%clk
0:00:09.9]} 52... Nc5+ {[%clk 0:00:08.4]} 53. Kd4 {[%clk 0:00:10.6]} 53... Rxd2+
{[%clk 0:00:08.4]} 54. Kxc5 {[%clk 0:00:10.4]} 54... Be6 {[%clk 0:00:08.7]} 55.
a4 {[%clk 0:00:10.3]} 55... b2 {[%clk 0:00:09.1]} 56. a5 {[%clk 0:00:10.6]}
56... Bf5 {[%clk 0:00:09.3]} 57. a6 {[%clk 0:00:10.9]} 57... b1=Q {[%clk
0:00:09.8]} 58. Rxb1 {[%clk 0:00:10.9]} 58... Bxb1 {[%clk 0:00:10.7]} 59. a7
{[%clk 0:00:09.5]} 59... Ra2 {[%clk 0:00:11.6]} 0-1

[Event "Late-Titled-Tuesday-Blitz-October-03-2023"]
[Site "Chess.com"]
[Date "2023.10.03"]
[Round "2"]
[White "Defend1r"]
[Black "IngOscarArdila"]
[Result "0-1"]
[WhiteElo "2494"]
[BlackElo "2327"]
[TimeControl "180+1"]
[EndTime "14:18:01 PDT"]
[Termination "IngOscarArdila won by checkmate"]

1. c4 {[%clk 0:03:00.9]} 1... Nf6 {[%clk 0:02:56.2]} 2. Nc3 {[%clk 0:03:00.1]}
2... d6 {[%clk 0:02:56.4]} 3. d4 {[%clk 0:02:59.1]} 3... Nbd7 {[%clk 0:02:56.8]}
4. g3 {[%clk 0:02:58.7]} 4... c6 {[%clk 0:02:57.4]} 5. Bg2 {[%clk 0:02:58.9]}
5... Qc7 {[%clk 0:02:58]} 6. Nf3 {[%clk 0:02:58.6]} 6... e5 {[%clk 0:02:58.3]}
7. e4 {[%clk 0:02:57.6]} 7... Be7 {[%clk 0:02:58.3]} 8. O-O {[%clk 0:02:57.8]}
8... O-O {[%clk 0:02:58.6]} 9. Be3 {[%clk 0:02:55.7]} 9... Re8 {[%clk
0:02:58.8]} 10. Nh4 {[%clk 0:02:55.5]} 10... Nf8 {[%clk 0:02:58.1]} 11. Nf5
{[%clk 0:02:55.2]} 11... Bxf5 {[%clk 0:02:57.8]} 12. exf5 {[%clk 0:02:55.4]}
12... Rad8 {[%clk 0:02:55.6]} 13. Qa4 {[%clk 0:02:45]} 13... a6 {[%clk
0:02:40.6]} 14. Qb3 {[%clk 0:02:40.7]} 14... N8d7 {[%clk 0:02:33.9]} 15. a4
{[%clk 0:02:33.5]} 15... Ng4 {[%clk 0:02:31.4]} 16. dxe5 {[%clk 0:02:31]} 16...
dxe5 {[%clk 0:02:24.9]} 17. Bc1 {[%clk 0:02:27.6]} 17... Nc5 {[%clk 0:02:24.7]}
18. Qc2 {[%clk 0:02:27.3]} 18... a5 {[%clk 0:02:15.1]} 19. h3 {[%clk 0:02:22.8]}
19... Nf6 {[%clk 0:02:14.9]} 20. Bg5 {[%clk 0:02:22.5]} 20... h6 {[%clk
0:02:14.7]} 21. Bh4 {[%clk 0:02:22.2]} 21... Rd4 {[%clk 0:02:07.6]} 22. b3
{[%clk 0:02:13.6]} 22... Red8 {[%clk 0:02:07.6]} 23. Rad1 {[%clk 0:02:13.3]}
23... Qb6 {[%clk 0:01:50.8]} 24. Bxf6 {[%clk 0:01:55.9]} 24... Bxf6 {[%clk
0:01:49.6]} 25. Ne4 {[%clk 0:01:56.4]} 25... Qxb3 {[%clk 0:01:32.1]} 26. Rxd4
{[%clk 0:01:55.6]} 26... Rxd4 {[%clk 0:01:18.2]} 27. Nxf6+ {[%clk 0:01:54.7]}
27... gxf6 {[%clk 0:01:18.2]} 28. Qc1 {[%clk 0:01:52.8]} 28... Kg7 {[%clk
0:01:13.9]} 29. Kh2 {[%clk 0:01:27.2]} 29... Qxc4 {[%clk 0:01:13.6]} 30. Qb1
{[%clk 0:01:20.8]} 30... Qd3 {[%clk 0:01:00.4]} 31. Qb6 {[%clk 0:01:16]} 31...
Qc3 {[%clk 0:00:42]} 32. Qc7 {[%clk 0:00:53.6]} 32... Rd7 {[%clk 0:00:41.4]} 33.
Qc8 {[%clk 0:00:51.8]} 33... Qd4 {[%clk 0:00:36.6]} 34. Rc1 {[%clk 0:00:50.7]}
34... Nd3 {[%clk 0:00:31.7]} 35. Rd1 {[%clk 0:00:45.3]} 35... e4 {[%clk
0:00:32.1]} 36. Rd2 {[%clk 0:00:38.9]} 36... c5 {[%clk 0:00:29.4]} 37. Re2
{[%clk 0:00:37.8]} 37... Re7 {[%clk 0:00:24.4]} 38. Qb8 {[%clk 0:00:29.5]} 38...
c4 {[%clk 0:00:23.5]} 39. h4 {[%clk 0:00:20.4]} 39... c3 {[%clk 0:00:22.5]} 40.
h5 {[%clk 0:00:20.5]} 40... Nxf2 {[%clk 0:00:19.3]} 41. Qf4 {[%clk 0:00:20.6]}
41... Nd3 {[%clk 0:00:18.4]} 42. Qg4+ {[%clk 0:00:20.9]} 42... Kh7 {[%clk
0:00:18.9]} 43. Bxe4 {[%clk 0:00:21.2]} 43... Nf2 {[%clk 0:00:16.8]} 44. Qf4
{[%clk 0:00:06.2]} 44... Rxe4 {[%clk 0:00:15.2]} 45. Qxf2 {[%clk 0:00:05.9]}
45... Rxe2 {[%clk 0:00:14.2]} 46. Qxe2 {[%clk 0:00:05.8]} 46... Qd2 {[%clk
0:00:14.9]} 47. Qxd2 {[%clk 0:00:05.3]} 47... cxd2 {[%clk 0:00:15.1]} 48. g4
{[%clk 0:00:06.2]} 48... d1=Q {[%clk 0:00:15.5]} 49. g5 {[%clk 0:00:07.1]} 49...
Qxh5+ {[%clk 0:00:15.1]} 50. Kg3 {[%clk 0:00:08]} 50... Qxg5+ {[%clk 0:00:15.3]}
51. Kh3 {[%clk 0:00:08.5]} 51... Qxf5+ {[%clk 0:00:15.6]} 52. Kh4 {[%clk
0:00:09.4]} 52... Qc5 {[%clk 0:00:15.7]} 53. Kg4 {[%clk 0:00:09.7]} 53... Qb4+
{[%clk 0:00:16]} 54. Kh5 {[%clk 0:00:10.6]} 54... Qe1 {[%clk 0:00:12.5]} 55. Kg4
{[%clk 0:00:10.7]} 55... Qg1+ {[%clk 0:00:12.5]} 56. Kf5 {[%clk 0:00:11.6]}
56... Qg5+ {[%clk 0:00:12.6]} 57. Ke4 {[%clk 0:00:12.1]} 57... h5 {[%clk
0:00:13.2]} 58. Kf3 {[%clk 0:00:12]} 58... h4 {[%clk 0:00:13.7]} 59. Ke4 {[%clk
0:00:12.6]} 59... h3 {[%clk 0:00:13.8]} 60. Kd4 {[%clk 0:00:13.5]} 60... Qf4+
{[%clk 0:00:13.2]} 61. Kc5 {[%clk 0:00:13.5]} 61... h2 {[%clk 0:00:12.7]} 62.
Kb6 {[%clk 0:00:14.4]} 62... h1=Q {[%clk 0:00:11.6]} 63. Ka7 {[%clk 0:00:14.8]}
63... Qg1+ {[%clk 0:00:11.2]} 64. Ka8 {[%clk 0:00:14.9]} 64... Qfg4 {[%clk
0:00:08.8]} 65. Kb8 {[%clk 0:00:14.6]} 65... Qh2+ {[%clk 0:00:08.9]} 66. Ka7
{[%clk 0:00:14.8]} 66... Kh6 {[%clk 0:00:08.4]} 67. Kb6 {[%clk 0:00:14.9]} 67...
Kh5 {[%clk 0:00:08.4]} 68. Kxa5 {[%clk 0:00:14.6]} 68... Qe5+ {[%clk 0:00:07.3]}
69. Kb6 {[%clk 0:00:15]} 69... Qd6+ {[%clk 0:00:06.7]} 70. Ka7 {[%clk
0:00:15.5]} 70... Qc5+ {[%clk 0:00:06.3]} 71. Ka8 {[%clk 0:00:15.6]} 71... Qcc8+
{[%clk 0:00:04.3]} 72. Ka7 {[%clk 0:00:15.9]} 72... Qd4# {[%clk 0:00:04.8]} 0-1

[Event "Late-Titled-Tuesday-Blitz-October-03-2023"]
[Site "Chess.com"]
[Date "2023.10.03"]
[Round "2"]
[White "Efremov_Vlad"]
[Black "geordie_derraugh"]
[Result "0-1"]
[WhiteElo "2298"]
[BlackElo "2508"]
[TimeControl "180+1"]
[EndTime "14:18:04 PDT"]
[Termination "geordie_derraugh won by resignation"]

1. d4 {[%clk 0:03:00.9]} 1... Nf6 {[%clk 0:02:58.3]} 2. c4 {[%clk 0:03:01.4]}
2... e5 {[%clk 0:02:57.9]} 3. dxe5 {[%clk 0:03:01.4]} 3... Ng4 {[%clk
0:02:55.8]} 4. Bf4 {[%clk 0:03:01.3]} 4... Nc6 {[%clk 0:02:56.2]} 5. Nf3 {[%clk
0:03:00.8]} 5... Bb4+ {[%clk 0:02:55.6]} 6. Nbd2 {[%clk 0:03:01]} 6... Qe7
{[%clk 0:02:55.8]} 7. a3 {[%clk 0:03:01.7]} 7... Ngxe5 {[%clk 0:02:55.8]} 8.
Nxe5 {[%clk 0:03:02.6]} 8... Nxe5 {[%clk 0:02:55.2]} 9. e3 {[%clk 0:03:03.3]}
9... Bxd2+ {[%clk 0:02:55.2]} 10. Qxd2 {[%clk 0:03:04.2]} 10... d6 {[%clk
0:02:55.4]} 11. Be2 {[%clk 0:02:56.9]} 11... O-O {[%clk 0:02:54.8]} 12. O-O
{[%clk 0:02:57.5]} 12... Ng6 {[%clk 0:02:55.3]} 13. Bg3 {[%clk 0:02:57.2]} 13...
b6 {[%clk 0:02:55.9]} 14. Bf3 {[%clk 0:02:54.8]} 14... Rb8 {[%clk 0:02:55.6]}
15. Rac1 {[%clk 0:02:53.1]} 15... f5 {[%clk 0:02:54.1]} 16. b4 {[%clk
0:02:50.1]} 16... Rd8 {[%clk 0:02:35.2]} 17. Rfe1 {[%clk 0:02:47.8]} 17... Be6
{[%clk 0:02:33.3]} 18. e4 {[%clk 0:02:44.1]} 18... Qf6 {[%clk 0:02:18.1]} 19.
exf5 {[%clk 0:02:43]} 19... Bxf5 {[%clk 0:02:19]} 20. Re2 {[%clk 0:02:26.3]}
20... Ne5 {[%clk 0:01:49]} 21. Bd5+ {[%clk 0:02:16.2]} 21... Kh8 {[%clk
0:01:49]} 22. Rce1 {[%clk 0:02:16.8]} 22... c6 {[%clk 0:01:49.4]} 23. Rxe5
{[%clk 0:01:52.5]} 23... dxe5 {[%clk 0:01:26.2]} 24. Bxe5 {[%clk 0:01:53.4]}
24... Qf8 {[%clk 0:01:09.5]} 25. Bxb8 {[%clk 0:01:51.6]} 25... cxd5 {[%clk
0:01:10.1]} 26. Bg3 {[%clk 0:01:45.6]} 26... dxc4 {[%clk 0:01:08.6]} 27. Qc3
{[%clk 0:01:45.7]} 27... Bd3 {[%clk 0:01:08.6]} 28. Be5 {[%clk 0:01:45]} 28...
Kg8 {[%clk 0:01:05.7]} 29. Re3 {[%clk 0:01:44.9]} 29... Rd7 {[%clk 0:00:59.2]}
30. Rg3 {[%clk 0:01:44.8]} 30... Rf7 {[%clk 0:00:43.5]} 31. h4 {[%clk
0:01:43.7]} 31... b5 {[%clk 0:00:31.3]} 32. h5 {[%clk 0:01:39.4]} 32... h6
{[%clk 0:00:28.7]} 33. Kh2 {[%clk 0:01:32.2]} 33... Qe7 {[%clk 0:00:28.7]} 34.
Qd4 {[%clk 0:01:27.6]} 34... Kh7 {[%clk 0:00:25.8]} 35. Kg1 {[%clk 0:01:23]}
35... Bf5 {[%clk 0:00:19.7]} 36. f4 {[%clk 0:01:15.2]} 36... Qd7 {[%clk
0:00:19.9]} 37. Bd6 {[%clk 0:00:49.3]} 37... Bg4 {[%clk 0:00:16.6]} 38. Qd5
{[%clk 0:00:47.7]} 38... Rf5 {[%clk 0:00:11.2]} 39. Qd4 {[%clk 0:00:37.5]} 39...
Rxh5 {[%clk 0:00:09.4]} 40. Qe4+ {[%clk 0:00:33.2]} 40... Bf5 {[%clk 0:00:06.2]}
41. Qe2 {[%clk 0:00:33.8]} 41... Rh4 {[%clk 0:00:04.9]} 42. Qe5 {[%clk 0:00:33]}
42... Rh5 {[%clk 0:00:04.4]} 43. Kf2 {[%clk 0:00:22.6]} 43... Qf7 {[%clk
0:00:04.2]} 44. Bc5 {[%clk 0:00:19.6]} 44... a6 {[%clk 0:00:04.5]} 45. Bd4
{[%clk 0:00:19.9]} 45... Bg6 {[%clk 0:00:04.6]} 46. Qe3 {[%clk 0:00:18.4]} 46...
Rf5 {[%clk 0:00:05.2]} 47. Rf3 {[%clk 0:00:18.7]} 47... Bh5 {[%clk 0:00:05.8]}
48. Be5 {[%clk 0:00:17.5]} 48... Bxf3 {[%clk 0:00:05.8]} 49. Qxf3 {[%clk
0:00:18.4]} 49... Qg6 {[%clk 0:00:04.8]} 50. g4 {[%clk 0:00:18.3]} 50... Rf7
{[%clk 0:00:04.7]} 51. f5 {[%clk 0:00:18.6]} 51... Qg5 {[%clk 0:00:04.7]} 52.
Bf4 {[%clk 0:00:18.3]} 52... Qh4+ {[%clk 0:00:05.3]} 53. Ke3 {[%clk 0:00:18.3]}
53... Qd8 {[%clk 0:00:06]} 54. Qe4 {[%clk 0:00:18.4]} 54... Re7 {[%clk
0:00:05.3]} 55. Be5 {[%clk 0:00:19.1]} 55... Kg8 {[%clk 0:00:04.2]} 56. f6
{[%clk 0:00:19.2]} 56... gxf6 {[%clk 0:00:04.3]} 57. Qg6+ {[%clk 0:00:19.3]}
57... Rg7 {[%clk 0:00:04.9]} 58. Qxh6 {[%clk 0:00:12.7]} 58... fxe5 {[%clk
0:00:04.3]} 59. Qe6+ {[%clk 0:00:13.5]} 59... Rf7 {[%clk 0:00:04.1]} 60. Qg6+
{[%clk 0:00:13.9]} 60... Kf8 {[%clk 0:00:04.5]} 61. Qh6+ {[%clk 0:00:14.3]}
61... Ke8 {[%clk 0:00:04.1]} 62. Qe6+ {[%clk 0:00:14.5]} 62... Re7 {[%clk
0:00:04]} 63. Qg6+ {[%clk 0:00:13.2]} 63... Kd7 {[%clk 0:00:04.6]} 64. Qxa6
{[%clk 0:00:10.6]} 64... Qc7 {[%clk 0:00:04.8]} 65. Qxb5+ {[%clk 0:00:10.8]}
65... Qc6 {[%clk 0:00:05.4]} 66. Qb8 {[%clk 0:00:07.6]} 66... c3 {[%clk
0:00:05.7]} 67. b5 {[%clk 0:00:06.6]} 67... Qc5+ {[%clk 0:00:05.6]} 68. Ke4
{[%clk 0:00:07.5]} 68... c2 {[%clk 0:00:06.2]} 69. Qb7+ {[%clk 0:00:07.3]} 69...
Ke6 {[%clk 0:00:06.5]} 70. Qa6+ {[%clk 0:00:02.6]} 70... Kf7 {[%clk 0:00:06.9]}
71. Qg6+ {[%clk 0:00:01.8]} 71... Kxg6 {[%clk 0:00:06.5]} 0-1

[Event "Late-Titled-Tuesday-Blitz-October-03-2023"]
[Site "Chess.com"]
[Date "2023.10.03"]
[Round "2"]
[White "Hrant_ChessMood"]
[Black "Deeper44"]
[Result "1-0"]
[WhiteElo "2963"]
[BlackElo "2587"]
[TimeControl "180+1"]
[EndTime "14:18:18 PDT"]
[Termination "Hrant_ChessMood won by resignation"]

1. c4 {[%clk 0:03:00.9]} 1... Nf6 {[%clk 0:03:00]} 2. Nf3 {[%clk 0:02:59.3]}
2... g6 {[%clk 0:03:00.2]} 3. Nc3 {[%clk 0:02:58.4]} 3... Bg7 {[%clk 0:03:01.1]}
4. e4 {[%clk 0:02:57.4]} 4... d6 {[%clk 0:03:02]} 5. d4 {[%clk 0:02:57.5]} 5...
O-O {[%clk 0:03:02.9]} 6. Be2 {[%clk 0:02:57.6]} 6... Na6 {[%clk 0:03:03.8]} 7.
O-O {[%clk 0:02:57.1]} 7... e5 {[%clk 0:03:04.7]} 8. Re1 {[%clk 0:02:56.8]} 8...
exd4 {[%clk 0:03:03.2]} 9. Nxd4 {[%clk 0:02:56.6]} 9... Re8 {[%clk 0:03:04.1]}
10. Bf1 {[%clk 0:02:55]} 10... Nc5 {[%clk 0:03:02]} 11. f3 {[%clk 0:02:53.9]}
11... c6 {[%clk 0:03:02.6]} 12. Be3 {[%clk 0:02:46.3]} 12... a5 {[%clk
0:02:59.6]} 13. Qc2 {[%clk 0:02:41.7]} 13... a4 {[%clk 0:02:59]} 14. Rad1 {[%clk
0:02:41.2]} 14... Qa5 {[%clk 0:02:59.4]} 15. Nde2 {[%clk 0:02:35.6]} 15... Be6
{[%clk 0:02:54.1]} 16. Nf4 {[%clk 0:02:34.1]} 16... Qc7 {[%clk 0:02:26.5]} 17.
Kh1 {[%clk 0:02:29.5]} 17... Nfd7 {[%clk 0:02:23]} 18. Bd4 {[%clk 0:02:23.7]}
18... Ne5 {[%clk 0:02:22.1]} 19. Nb1 {[%clk 0:02:08.6]} 19... Qe7 {[%clk
0:02:07.1]} 20. b4 {[%clk 0:01:56.6]} 20... axb3 {[%clk 0:01:58.4]} 21. axb3
{[%clk 0:01:57.5]} 21... Qg5 {[%clk 0:01:53.6]} 22. Be3 {[%clk 0:01:53.3]} 22...
Qe7 {[%clk 0:01:44.2]} 23. b4 {[%clk 0:01:50.4]} 23... Na4 {[%clk 0:01:27.3]}
24. Nxe6 {[%clk 0:01:36.1]} 24... Qxe6 {[%clk 0:00:50.1]} 25. c5 {[%clk
0:01:35.9]} 25... dxc5 {[%clk 0:00:40.4]} 26. bxc5 {[%clk 0:01:35.1]} 26... Nd7
{[%clk 0:00:34.7]} 27. Rd6 {[%clk 0:01:32]} 27... Qe7 {[%clk 0:00:34]} 28. Red1
{[%clk 0:01:31.9]} 28... Nf8 {[%clk 0:00:23.1]} 29. Bc4 {[%clk 0:01:25.2]} 29...
Nb2 {[%clk 0:00:22.5]} 30. Rc1 {[%clk 0:01:13.2]} 30... Nxc4 {[%clk 0:00:22.4]}
31. Qxc4 {[%clk 0:01:14.1]} 31... Be5 {[%clk 0:00:21.4]} 32. Rdd1 {[%clk
0:01:10.6]} 32... Red8 {[%clk 0:00:20.6]} 33. Nd2 {[%clk 0:01:03.2]} 33... Ne6
{[%clk 0:00:18.8]} 34. Nf1 {[%clk 0:01:02.8]} 34... Rxd1 {[%clk 0:00:15.8]} 35.
Rxd1 {[%clk 0:01:03.7]} 35... Rd8 {[%clk 0:00:16.4]} 36. Rb1 {[%clk 0:01:03.1]}
36... Bd4 {[%clk 0:00:16.5]} 37. Bxd4 {[%clk 0:00:47.8]} 37... Rxd4 {[%clk
0:00:17.4]} 38. Qc3 {[%clk 0:00:48.5]} 38... Qxc5 {[%clk 0:00:17.6]} 39. Qa1
{[%clk 0:00:45]} 39... b5 {[%clk 0:00:16.3]} 40. h3 {[%clk 0:00:45.6]} 40... Ra4
{[%clk 0:00:16.5]} 41. Qb2 {[%clk 0:00:44]} 41... Qd4 {[%clk 0:00:16.3]} 42. Qc1
{[%clk 0:00:43.5]} 42... Rc4 {[%clk 0:00:16.6]} 43. Qa3 {[%clk 0:00:42.7]} 43...
Nf4 {[%clk 0:00:16.1]} 44. Qa2 {[%clk 0:00:25.5]} 44... Qd3 {[%clk 0:00:12.5]}
45. Re1 {[%clk 0:00:10.5]} 45... Rc2 {[%clk 0:00:12.3]} 46. Qa8+ {[%clk
0:00:10.3]} 46... Kg7 {[%clk 0:00:12.4]} 47. Ne3 {[%clk 0:00:11.2]} 47... Re2
{[%clk 0:00:09.5]} 48. Qa1+ {[%clk 0:00:11.7]} 48... Kg8 {[%clk 0:00:09.1]} 49.
Ng4 {[%clk 0:00:11.6]} 49... Rxe1+ {[%clk 0:00:07.6]} 50. Qxe1 {[%clk
0:00:12.5]} 50... h5 {[%clk 0:00:07.2]} 51. Nf6+ {[%clk 0:00:05.3]} 51... Kg7
{[%clk 0:00:07.3]} 52. e5 {[%clk 0:00:06.2]} 52... Qe2 {[%clk 0:00:07.1]} 53.
Qg3 {[%clk 0:00:06.2]} 53... h4 {[%clk 0:00:04.5]} 54. Qxf4 {[%clk 0:00:05.7]}
54... Qe1+ {[%clk 0:00:05.4]} 55. Kh2 {[%clk 0:00:05.9]} 55... Kf8 {[%clk
0:00:05.1]} 56. Ne4 {[%clk 0:00:06.2]} 56... Ke7 {[%clk 0:00:04.1]} 57. Ng5
{[%clk 0:00:06]} 57... f5 {[%clk 0:00:02.8]} 58. exf6+ {[%clk 0:00:05.6]} 58...
Kf8 {[%clk 0:00:03.7]} 59. Qb8+ {[%clk 0:00:05.1]} 59... Qe8 {[%clk 0:00:03.9]}
60. Nh7+ {[%clk 0:00:04.8]} 60... Kf7 {[%clk 0:00:04.4]} 61. Qc7+ {[%clk
0:00:05]} 61... Ke6 {[%clk 0:00:05]} 62. Ng5+ {[%clk 0:00:03]} 62... Kxf6 {[%clk
0:00:05.4]} 63. Ne4+ {[%clk 0:00:03.9]} 63... Kf5 {[%clk 0:00:05]} 64. Nd6+
{[%clk 0:00:02.8]} 1-0